[Event "***Titled Tuesday 3|2 Blitz"]
[Site "Chess.com"]
[Date "2017.02.07"]
[Round "8"]
[White "twitchTriniCupid"]
[Black "Saitama_Hero"]
[Result "1-0"]
[WhiteElo "2139"]
[BlackElo "2042"]
[TimeControl "180+2"]
[EndTime "14:55:24 PST"]
[Termination "twitchTriniCupid won by resignation"]

1. Nf3 {[%clk 0:03:02]} 1... Nf6 {[%clk 0:02:59]} 2. g3 {[%clk 0:03:01]} 2... g6
{[%clk 0:03:00.4]} 3. Bg2 {[%clk 0:03:01.5]} 3... Bg7 {[%clk 0:02:59.1]} 4. O-O
{[%clk 0:03:01.3]} 4... O-O {[%clk 0:03:00.6]} 5. d3 {[%clk 0:03:00.8]} 5... d5
{[%clk 0:03:00.8]} 6. Nc3 {[%clk 0:03:01.7]} 6... d4 {[%clk 0:02:57.9]} 7. Nb5
{[%clk 0:02:58.8]} 7... c5 {[%clk 0:02:56.3]} 8. c4 {[%clk 0:02:55.7]} 8... a6
{[%clk 0:02:55.3]} 9. Na3 {[%clk 0:02:56.4]} 9... Nc6 {[%clk 0:02:57]} 10. Nc2
{[%clk 0:02:57.3]} 10... e5 {[%clk 0:02:55.5]} 11. a3 {[%clk 0:02:42.2]} 11...
Re8 {[%clk 0:02:50.8]} 12. Bg5 {[%clk 0:02:40.5]} 12... h6 {[%clk 0:02:45.3]}
13. Bxf6 {[%clk 0:02:41.4]} 13... Bxf6 {[%clk 0:02:37.1]} 14. Nd2 {[%clk
0:02:42]} 14... a5 {[%clk 0:02:33.9]} 15. Qc1 {[%clk 0:02:39]} 15... Bg7 {[%clk
0:02:33]} 16. b4 {[%clk 0:02:37]} 16... axb4 {[%clk 0:02:27.9]} 17. axb4 {[%clk
0:02:37.4]} 17... Rxa1 {[%clk 0:02:28.3]} 18. Qxa1 {[%clk 0:02:37.5]} 18... cxb4
{[%clk 0:02:25.2]} 19. Qa4 {[%clk 0:02:35.8]} 19... Bd7 {[%clk 0:02:12.6]} 20.
Nxb4 {[%clk 0:02:34.5]} 20... Na5 {[%clk 0:02:03.5]} 21. Qa2 {[%clk 0:02:25.2]}
21... Nc6 {[%clk 0:01:41.6]} 22. Nd5 {[%clk 0:02:23.5]} 22... Bg4 {[%clk
0:01:29.4]} 23. Ne4 {[%clk 0:02:21.2]} 23... Kh7 {[%clk 0:01:24]} 24. h3 {[%clk
0:02:21.4]} 24... Bc8 {[%clk 0:01:22]} 25. Rb1 {[%clk 0:02:16.5]} 25... Re7
{[%clk 0:01:03.1]} 26. Nc5 {[%clk 0:02:06.1]} 26... Qd6 {[%clk 0:01:01.4]} 27.
Ne4 {[%clk 0:02:00.4]} 27... Qd8 {[%clk 0:01:01]} 28. Qa3 {[%clk 0:01:57.6]}
28... f5 {[%clk 0:01:00.2]} 29. Nxe7 {[%clk 0:01:53.3]} 29... Nxe7 {[%clk
0:00:56.4]} 30. Qd6 {[%clk 0:01:50.4]} 30... Qe8 {[%clk 0:00:50.6]} 31. Nc5
{[%clk 0:01:46.4]} 31... Bf8 {[%clk 0:00:41]} 32. Qxe5 {[%clk 0:01:46.4]} 32...
Qf7 {[%clk 0:00:38.1]} 33. Nxb7 {[%clk 0:01:44.6]} 33... Bg7 {[%clk 0:00:33.6]}
34. Nd6 {[%clk 0:01:42.3]} 34... Qf8 {[%clk 0:00:29.5]} 35. Qc5 {[%clk
0:01:39.2]} 35... Bd7 {[%clk 0:00:29.1]} 36. Qc7 {[%clk 0:01:37.9]} 36... Be6
{[%clk 0:00:28.1]} 37. Rb8 {[%clk 0:01:36]} 37... Bf6 {[%clk 0:00:29.5]} 1-0

[Event "***Titled Tuesday 3|2 Blitz"]
[Site "Chess.com"]
[Date "2017.02.07"]
[Round "8"]
[White "Dale"]
[Black "ABDELAZEEZ-M"]
[Result "1-0"]
[WhiteElo "1994"]
[BlackElo "2122"]
[TimeControl "180+2"]
[EndTime "14:56:03 PST"]
[Termination "Dale won by checkmate"]

1. f3 {[%clk 0:03:02]} 1... d5 {[%clk 0:02:50.6]} 2. d4 {[%clk 0:03:00.5]} 2...
Bf5 {[%clk 0:02:48.2]} 3. Nc3 {[%clk 0:03:00.4]} 3... c6 {[%clk 0:02:48]} 4. e4
{[%clk 0:02:59.9]} 4... dxe4 {[%clk 0:02:46.4]} 5. fxe4 {[%clk 0:03:01]} 5...
Bg6 {[%clk 0:02:47.4]} 6. Nf3 {[%clk 0:03:01]} 6... e6 {[%clk 0:02:48.1]} 7. h4
{[%clk 0:02:55.5]} 7... h6 {[%clk 0:02:46.6]} 8. Ne5 {[%clk 0:02:53.6]} 8... Bh7
{[%clk 0:02:39.7]} 9. Qf3 {[%clk 0:02:48.7]} 9... Nf6 {[%clk 0:02:37.1]} 10. Be3
{[%clk 0:02:46.8]} 10... Bb4 {[%clk 0:02:36.2]} 11. Bd3 {[%clk 0:02:43.2]} 11...
Qa5 {[%clk 0:02:34.4]} 12. Nc4 {[%clk 0:02:38.3]} 12... Bxc3+ {[%clk 0:02:33.8]}
13. bxc3 {[%clk 0:02:39.7]} 13... Qxc3+ {[%clk 0:02:19]} 14. Ke2 {[%clk
0:02:35.2]} 14... Bxe4 {[%clk 0:02:18.7]} 15. Nd6+ {[%clk 0:02:34.8]} 15... Ke7
{[%clk 0:02:11.9]} 16. Nxe4 {[%clk 0:02:34.9]} 16... Nxe4 {[%clk 0:02:12.7]} 17.
Qxe4 {[%clk 0:02:31.6]} 17... Nd7 {[%clk 0:02:12.2]} 18. Rab1 {[%clk 0:02:21.6]}
18... Rab8 {[%clk 0:02:10.4]} 19. Bf4 {[%clk 0:02:16.2]} 19... Nf6 {[%clk
0:02:02.6]} 20. Qe5 {[%clk 0:02:17.2]} 20... Rhd8 {[%clk 0:01:47]} 21. Rb3
{[%clk 0:02:11.6]} 21... Qxd4 {[%clk 0:01:43.5]} 22. Qxd4 {[%clk 0:02:12.7]}
22... Rxd4 {[%clk 0:01:42.2]} 23. Bxb8 {[%clk 0:02:13.7]} 23... b5 {[%clk
0:01:42.1]} 24. Be5 {[%clk 0:02:11.7]} 24... Ra4 {[%clk 0:01:41.4]} 25. Bxf6+
{[%clk 0:02:12]} 25... Kxf6 {[%clk 0:01:42]} 26. a3 {[%clk 0:02:13.2]} 26... a6
{[%clk 0:01:39.2]} 27. g3 {[%clk 0:02:14.4]} 27... Rg4 {[%clk 0:01:38.8]} 28.
Kf3 {[%clk 0:02:13.4]} 28... Rd4 {[%clk 0:01:39.7]} 29. Re1 {[%clk 0:02:13.5]}
29... c5 {[%clk 0:01:40.1]} 30. Ke3 {[%clk 0:02:12.5]} 30... Rd6 {[%clk
0:01:40.2]} 31. Rf1+ {[%clk 0:02:11.3]} 31... Ke7 {[%clk 0:01:40.7]} 32. Bxb5
{[%clk 0:02:10.2]} 32... axb5 {[%clk 0:01:39.9]} 33. Rxb5 {[%clk 0:02:11.2]}
33... Ra6 {[%clk 0:01:40.5]} 34. Rb7+ {[%clk 0:02:11.2]} 34... Kd6 {[%clk
0:01:40.4]} 35. Rfxf7 {[%clk 0:02:09.5]} 35... Rxa3+ {[%clk 0:01:40.6]} 36. Kf2
{[%clk 0:02:08]} 36... g5 {[%clk 0:01:40]} 37. h5 {[%clk 0:02:04.5]} 37... Rc3
{[%clk 0:01:39.4]} 38. Rb2 {[%clk 0:02:00.4]} 38... Ke5 {[%clk 0:01:39.8]} 39.
Rh7 {[%clk 0:02:00.5]} 39... Kf5 {[%clk 0:01:39.6]} 40. Rxh6 {[%clk 0:02:00.8]}
40... e5 {[%clk 0:01:40.1]} 41. Rh8 {[%clk 0:02:01.1]} 41... Kg4 {[%clk
0:01:40.3]} 42. Re8 {[%clk 0:01:53.6]} 42... Rxg3 {[%clk 0:01:39.4]} 43. Rxe5
{[%clk 0:01:51.7]} 43... Rh3 {[%clk 0:01:39.3]} 44. Rxc5 {[%clk 0:01:48.4]}
44... Kxh5 {[%clk 0:01:39.2]} 45. Kg2 {[%clk 0:01:47.6]} 45... Re3 {[%clk
0:01:38.9]} 46. Rbb5 {[%clk 0:01:47]} 46... Kh4 {[%clk 0:01:35.9]} 47. Rxg5
{[%clk 0:01:43.4]} 47... Re2+ {[%clk 0:01:36.7]} 48. Kf1 {[%clk 0:01:43.3]}
48... Rxc2 {[%clk 0:01:37.8]} 49. Rgc5 {[%clk 0:01:44.1]} 49... Rd2 {[%clk
0:01:34.5]} 50. Rb4+ {[%clk 0:01:44.9]} 50... Kg3 {[%clk 0:01:32]} 51. Rc3+
{[%clk 0:01:43.8]} 51... Kh2 {[%clk 0:01:28.6]} 52. Rh4# {[%clk 0:01:42.1]} 1-0

[Event "***Titled Tuesday 3|2 Blitz"]
[Site "Chess.com"]
[Date "2017.02.07"]
[Round "8"]
[White "Evgeny81"]
[Black "MattyDPerrine"]
[Result "1-0"]
[WhiteElo "2381"]
[BlackElo "2180"]
[TimeControl "180+2"]
[EndTime "14:56:07 PST"]
[Termination "Evgeny81 won on time"]

1. Nf3 {[%clk 0:03:02]} 1... c5 {[%clk 0:02:57.2]} 2. g3 {[%clk 0:03:02.3]} 2...
b6 {[%clk 0:02:57]} 3. Bg2 {[%clk 0:03:03]} 3... Bb7 {[%clk 0:02:58.6]} 4. O-O
{[%clk 0:03:02.9]} 4... Nf6 {[%clk 0:02:59.9]} 5. c4 {[%clk 0:03:03.1]} 5... e6
{[%clk 0:03:00.8]} 6. b3 {[%clk 0:02:58.7]} 6... Be7 {[%clk 0:02:59.5]} 7. Bb2
{[%clk 0:02:56.6]} 7... O-O {[%clk 0:02:48.3]} 8. d4 {[%clk 0:02:54.4]} 8...
cxd4 {[%clk 0:02:48.9]} 9. Qxd4 {[%clk 0:02:54.8]} 9... Nc6 {[%clk 0:02:50.2]}
10. Qf4 {[%clk 0:02:53.3]} 10... d5 {[%clk 0:02:48.4]} 11. Rd1 {[%clk
0:02:51.7]} 11... Qb8 {[%clk 0:02:44.4]} 12. Qxb8 {[%clk 0:02:50.9]} 12... Raxb8
{[%clk 0:02:45.5]} 13. Ne5 {[%clk 0:02:46.7]} 13... Nb4 {[%clk 0:02:01.5]} 14.
Na3 {[%clk 0:02:39.8]} 14... dxc4 {[%clk 0:01:56]} 15. Naxc4 {[%clk 0:02:37.4]}
15... Bxg2 {[%clk 0:01:56.1]} 16. Kxg2 {[%clk 0:02:38.7]} 16... Rbc8 {[%clk
0:01:49.8]} 17. a3 {[%clk 0:02:28.5]} 17... Nbd5 {[%clk 0:01:50.5]} 18. a4
{[%clk 0:02:22.8]} 18... Ne4 {[%clk 0:01:43.9]} 19. Nd3 {[%clk 0:02:13.4]} 19...
Nec3 {[%clk 0:00:58.5]} 20. Bxc3 {[%clk 0:02:06.4]} 20... Nxc3 {[%clk
0:00:59.5]} 21. Rd2 {[%clk 0:02:06.6]} 21... Rfd8 {[%clk 0:00:44]} 22. Re1
{[%clk 0:01:56.7]} 22... Nxa4 {[%clk 0:00:27.1]} 23. Ra2 {[%clk 0:01:57.1]}
23... b5 {[%clk 0:00:17.5]} 24. Nce5 {[%clk 0:01:50.3]} 24... Nc5 {[%clk
0:00:13.7]} 25. Rxa7 {[%clk 0:01:50.9]} 25... Re8 {[%clk 0:00:11.3]} 26. Nxc5
{[%clk 0:01:47.8]} 26... Bxc5 {[%clk 0:00:11.1]} 27. Rb7 {[%clk 0:01:41.4]}
27... f6 {[%clk 0:00:04.9]} 28. Nd3 {[%clk 0:01:37.5]} 28... Bf8 {[%clk
0:00:03.5]} 29. Rxb5 {[%clk 0:01:30]} 29... Rb8 {[%clk 0:00:04.9]} 30. Rxb8
{[%clk 0:01:30.7]} 30... Rxb8 {[%clk 0:00:06.8]} 31. Rb1 {[%clk 0:01:31.9]}
31... Kf7 {[%clk 0:00:08.1]} 32. Kf3 {[%clk 0:01:30.5]} 32... e5 {[%clk
0:00:08.8]} 33. e4 {[%clk 0:01:30.2]} 33... Ke6 {[%clk 0:00:08.2]} 34. Ke2
{[%clk 0:01:30.5]} 34... g6 {[%clk 0:00:07]} 35. b4 {[%clk 0:01:28.2]} 35... f5
{[%clk 0:00:05.5]} 36. f3 {[%clk 0:01:28.9]} 36... Bd6 {[%clk 0:00:04.3]} 37. b5
{[%clk 0:01:29.1]} 37... Kd7 {[%clk 0:00:03.2]} 38. Kd2 {[%clk 0:01:22.1]} 38...
Kc7 {[%clk 0:00:04.2]} 39. Kc3 {[%clk 0:01:21.2]} 1-0

[Event "***Titled Tuesday 3|2 Blitz"]
[Site "Chess.com"]
[Date "2017.02.07"]
[Round "8"]
[White "Robin-Side"]
[Black "Grebeniuk-S"]
[Result "1-0"]
[WhiteElo "2383"]
[BlackElo "2427"]
[TimeControl "180+2"]
[EndTime "14:56:29 PST"]
[Termination "Robin-Side won by checkmate"]

1. d4 {[%clk 0:03:02]} 1... f5 {[%clk 0:02:59.3]} 2. Bg5 {[%clk 0:03:00.1]} 2...
g6 {[%clk 0:03:00.2]} 3. Nc3 {[%clk 0:02:57.6]} 3... Nh6 {[%clk 0:03:01.2]} 4.
e4 {[%clk 0:02:57.3]} 4... Nf7 {[%clk 0:03:00.3]} 5. Be3 {[%clk 0:02:51.9]} 5...
d6 {[%clk 0:02:58.1]} 6. Bd3 {[%clk 0:02:51.9]} 6... fxe4 {[%clk 0:02:41.5]} 7.
Nxe4 {[%clk 0:02:53.8]} 7... Bg7 {[%clk 0:02:43.4]} 8. h4 {[%clk 0:02:49.9]}
8... e5 {[%clk 0:02:37.6]} 9. d5 {[%clk 0:02:42.9]} 9... O-O {[%clk 0:02:00.6]}
10. h5 {[%clk 0:02:42.9]} 10... Bf5 {[%clk 0:01:42.9]} 11. hxg6 {[%clk
0:02:37.1]} 11... Bxg6 {[%clk 0:01:41.9]} 12. Nf3 {[%clk 0:02:35.6]} 12... c6
{[%clk 0:01:38.8]} 13. Neg5 {[%clk 0:01:26.3]} 13... e4 {[%clk 0:01:10.1]} 14.
Nxe4 {[%clk 0:01:17.9]} 14... Qa5+ {[%clk 0:01:01.3]} 15. Nc3 {[%clk 0:01:13.1]}
15... Bxc3+ {[%clk 0:00:46.5]} 16. bxc3 {[%clk 0:01:15]} 16... Qxc3+ {[%clk
0:00:44.5]} 17. Bd2 {[%clk 0:01:12.2]} 17... Re8+ {[%clk 0:00:44.5]} 18. Kf1
{[%clk 0:01:03.3]} 18... Bxd3+ {[%clk 0:00:44.8]} 19. cxd3 {[%clk 0:01:05.2]}
19... Qxd3+ {[%clk 0:00:45.7]} 20. Kg1 {[%clk 0:01:06.8]} 20... Qxd5 {[%clk
0:00:30.9]} 21. Qc2 {[%clk 0:01:07.3]} 21... Qe4 {[%clk 0:00:25.8]} 22. Qb3
{[%clk 0:01:01.9]} 22... Nd7 {[%clk 0:00:20.2]} 23. Ng5 {[%clk 0:00:52.6]} 23...
Qd5 {[%clk 0:00:15.6]} 24. Qg3 {[%clk 0:00:46.5]} 24... Nxg5 {[%clk 0:00:15]}
25. Bxg5 {[%clk 0:00:48.4]} 25... Kh8 {[%clk 0:00:15.2]} 26. Qh4 {[%clk
0:00:45.3]} 26... Qf7 {[%clk 0:00:12.8]} 27. Bd2 {[%clk 0:00:38.4]} 27... Re6
{[%clk 0:00:11.5]} 28. Bc3+ {[%clk 0:00:39.5]} 28... Kg8 {[%clk 0:00:12.9]} 29.
Rh3 {[%clk 0:00:37.4]} 29... Rg6 {[%clk 0:00:12.3]} 30. Re1 {[%clk 0:00:34.1]}
30... Rf8 {[%clk 0:00:13.2]} 31. Re7 {[%clk 0:00:33.2]} 31... Qxe7 {[%clk
0:00:03.4]} 32. Qxe7 {[%clk 0:00:35.1]} 32... Ne5 {[%clk 0:00:03.7]} 33. Qxh7#
{[%clk 0:00:35.1]} 1-0

[Event "***Titled Tuesday 3|2 Blitz"]
[Site "Chess.com"]
[Date "2017.02.07"]
[Round "8"]
[White "ka1ser64"]
[Black "Vrolijk"]
[Result "0-1"]
[WhiteElo "2287"]
[BlackElo "2303"]
[TimeControl "180+2"]
[EndTime "14:56:30 PST"]
[Termination "Vrolijk won by resignation"]

1. d4 {[%clk 0:03:02]} 1... Nf6 {[%clk 0:02:58.3]} 2. c4 {[%clk 0:03:02.7]} 2...
e6 {[%clk 0:02:59.8]} 3. Nf3 {[%clk 0:03:03.8]} 3... d5 {[%clk 0:03:01]} 4. Nc3
{[%clk 0:03:02.3]} 4... a6 {[%clk 0:03:02.5]} 5. c5 {[%clk 0:02:50.3]} 5... b6
{[%clk 0:02:57.9]} 6. cxb6 {[%clk 0:02:51.2]} 6... cxb6 {[%clk 0:02:59.8]} 7.
Bf4 {[%clk 0:02:52.2]} 7... Bd6 {[%clk 0:02:58.9]} 8. e3 {[%clk 0:02:48.3]} 8...
O-O {[%clk 0:02:58.3]} 9. Bd3 {[%clk 0:02:48.7]} 9... a5 {[%clk 0:02:41.6]} 10.
Rc1 {[%clk 0:02:47.5]} 10... Ba6 {[%clk 0:02:42.6]} 11. O-O {[%clk 0:02:47]}
11... Bxd3 {[%clk 0:02:41.4]} 12. Qxd3 {[%clk 0:02:48.1]} 12... Bxf4 {[%clk
0:02:42.9]} 13. exf4 {[%clk 0:02:49.1]} 13... Nc6 {[%clk 0:02:44.5]} 14. f5
{[%clk 0:02:44.9]} 14... Nb4 {[%clk 0:02:38.6]} 15. Qb1 {[%clk 0:02:35.4]} 15...
Re8 {[%clk 0:02:39.1]} 16. fxe6 {[%clk 0:02:28.3]} 16... Rxe6 {[%clk 0:02:41]}
17. Qf5 {[%clk 0:02:13.1]} 17... Qd7 {[%clk 0:02:33.1]} 18. Ng5 {[%clk
0:02:08.7]} 18... Re7 {[%clk 0:02:17.4]} 19. Qxd7 {[%clk 0:01:48.7]} 19... Rxd7
{[%clk 0:02:19.3]} 20. a3 {[%clk 0:01:46.5]} 20... Nd3 {[%clk 0:02:18.4]} 21.
Rc2 {[%clk 0:01:47.3]} 21... Rc8 {[%clk 0:02:17.6]} 22. Rd1 {[%clk 0:01:41.3]}
22... Nxb2 {[%clk 0:02:18.1]} 23. Rxb2 {[%clk 0:01:40.4]} 23... Rxc3 {[%clk
0:02:16]} 24. Rxb6 {[%clk 0:01:41.9]} 24... Rd8 {[%clk 0:02:08]} 25. Ra1 {[%clk
0:01:35.9]} 25... h6 {[%clk 0:02:07.8]} 26. Nf3 {[%clk 0:01:36]} 26... Rdc8
{[%clk 0:02:03.7]} 27. h3 {[%clk 0:01:36]} 27... Rc1+ {[%clk 0:02:04.7]} 28.
Rxc1 {[%clk 0:01:36.6]} 28... Rxc1+ {[%clk 0:02:06.6]} 29. Kh2 {[%clk
0:01:37.8]} 29... Rc3 {[%clk 0:02:08.1]} 30. a4 {[%clk 0:01:35]} 30... Rc4
{[%clk 0:02:08.4]} 31. Rb7 {[%clk 0:01:34.1]} 31... Rxa4 {[%clk 0:02:08.1]} 32.
Ne5 {[%clk 0:01:33.8]} 32... Rxd4 {[%clk 0:02:08.1]} 33. Nxf7 {[%clk 0:01:34.8]}
33... a4 {[%clk 0:01:59.6]} 34. Nd6 {[%clk 0:01:36]} 34... a3 {[%clk 0:01:47.9]}
35. Ra7 {[%clk 0:01:37.2]} 35... Rd2 {[%clk 0:01:42.9]} 36. Rxa3 {[%clk
0:01:28.4]} 36... Rxf2 {[%clk 0:01:43.8]} 37. Ra8+ {[%clk 0:01:23.6]} 37... Kh7
{[%clk 0:01:44.2]} 38. Ra7 {[%clk 0:01:24]} 38... Kg6 {[%clk 0:01:40.5]} 39. Kg3
{[%clk 0:01:24.5]} 39... Re2 {[%clk 0:01:37.8]} 40. Kf3 {[%clk 0:01:25.2]} 40...
Re1 {[%clk 0:01:38.5]} 41. g4 {[%clk 0:01:24.9]} 41... d4 {[%clk 0:00:54.9]} 42.
Nf5 {[%clk 0:01:24.1]} 42... Ne8 {[%clk 0:00:56.3]} 43. Rd7 {[%clk 0:01:23.3]}
43... Kf6 {[%clk 0:00:55]} 44. Rxd4 {[%clk 0:01:22.3]} 44... Nc7 {[%clk
0:00:53.9]} 45. Rd6+ {[%clk 0:01:22.2]} 45... Ne6 {[%clk 0:00:53.7]} 46. Rd7
{[%clk 0:01:11.2]} 46... Ra1 {[%clk 0:00:48.4]} 47. Rd3 {[%clk 0:01:07.4]} 47...
Rh1 {[%clk 0:00:45.9]} 48. Ke4 {[%clk 0:00:58]} 48... Nc5+ {[%clk 0:00:45.6]}
0-1

[Event "***Titled Tuesday 3|2 Blitz"]
[Site "Chess.com"]
[Date "2017.02.07"]
[Round "8"]
[White "HouseOfDurin"]
[Black "scenicregal"]
[Result "0-1"]
[WhiteElo "1887"]
[BlackElo "1867"]
[TimeControl "180+2"]
[EndTime "14:56:34 PST"]
[Termination "scenicregal won on time"]

1. d4 {[%clk 0:03:02]} 1... Nc6 {[%clk 0:02:59.8]} 2. g3 {[%clk 0:02:53.7]} 2...
d6 {[%clk 0:02:58.9]} 3. Bg2 {[%clk 0:02:42.8]} 3... g6 {[%clk 0:02:58.4]} 4. d5
{[%clk 0:02:32.2]} 4... Nb8 {[%clk 0:02:51.2]} 5. f4 {[%clk 0:02:05.3]} 5... Bg7
{[%clk 0:02:51.6]} 6. Nf3 {[%clk 0:02:05.3]} 6... c5 {[%clk 0:02:48.4]} 7. O-O
{[%clk 0:02:04.4]} 7... Nh6 {[%clk 0:02:44.2]} 8. e4 {[%clk 0:02:01.8]} 8... b5
{[%clk 0:02:41.6]} 9. e5 {[%clk 0:01:48.9]} 9... O-O {[%clk 0:02:37.9]} 10. b3
{[%clk 0:01:33.7]} 10... c4 {[%clk 0:02:19.7]} 11. Bb2 {[%clk 0:01:29.2]} 11...
Nf5 {[%clk 0:02:07.6]} 12. Re1 {[%clk 0:01:25.8]} 12... Qb6+ {[%clk 0:02:06.6]}
13. Kh1 {[%clk 0:01:18.9]} 13... Ne3 {[%clk 0:02:07.5]} 14. Qe2 {[%clk
0:01:01.3]} 14... Nxg2 {[%clk 0:02:03.9]} 15. Kxg2 {[%clk 0:01:03.2]} 15... Bb7
{[%clk 0:02:01.2]} 16. Bd4 {[%clk 0:00:59.3]} 16... Qc7 {[%clk 0:01:50.8]} 17.
bxc4 {[%clk 0:00:57]} 17... Qxc4 {[%clk 0:01:45.1]} 18. Qxc4 {[%clk 0:00:50.3]}
18... bxc4 {[%clk 0:01:46.1]} 19. Nc3 {[%clk 0:00:51.4]} 19... dxe5 {[%clk
0:01:41.5]} 20. fxe5 {[%clk 0:00:41.3]} 20... Rd8 {[%clk 0:01:39.6]} 21. Bc5
{[%clk 0:00:21.8]} 21... e6 {[%clk 0:01:34.7]} 22. d6 {[%clk 0:00:21.7]} 22...
Nc6 {[%clk 0:01:27]} 23. Rab1 {[%clk 0:00:16]} 23... Rab8 {[%clk 0:01:23.6]} 24.
Kf2 {[%clk 0:00:15.4]} 24... Ba8 {[%clk 0:01:22.8]} 25. Nb5 {[%clk 0:00:14.6]}
25... f6 {[%clk 0:01:07.1]} 26. exf6 {[%clk 0:00:10.9]} 26... Bxf6 {[%clk
0:01:07.9]} 27. Nc7 {[%clk 0:00:12.5]} 27... Rxb1 {[%clk 0:01:01.4]} 28. Rxb1
{[%clk 0:00:14.4]} 28... Ne5 {[%clk 0:00:53]} 29. Nxe6 {[%clk 0:00:13.1]} 29...
Ng4+ {[%clk 0:00:50.9]} 30. Kg2 {[%clk 0:00:12.8]} 30... Re8 {[%clk 0:00:40.6]}
31. Nc7 {[%clk 0:00:09.6]} 31... Re2+ {[%clk 0:00:40.5]} 32. Kh3 {[%clk
0:00:10.7]} 32... Bxf3 {[%clk 0:00:41.1]} 33. Bg1 {[%clk 0:00:04.2]} 33... h5
{[%clk 0:00:36.8]} 34. Rb8+ {[%clk 0:00:02.5]} 34... Kh7 {[%clk 0:00:35.9]} 0-1

[Event "***Titled Tuesday 3|2 Blitz"]
[Site "Chess.com"]
[Date "2017.02.07"]
[Round "8"]
[White "Alliswell998"]
[Black "Dlugy"]
[Result "0-1"]
[WhiteElo "2149"]
[BlackElo "2668"]
[TimeControl "180+2"]
[EndTime "14:56:53 PST"]
[Termination "Dlugy won by resignation"]

1. e4 {[%clk 0:03:01.9]} 1... c5 {[%clk 0:03:00]} 2. Nf3 {[%clk 0:03:02.5]} 2...
d6 {[%clk 0:03:01]} 3. d4 {[%clk 0:02:58.8]} 3... cxd4 {[%clk 0:03:02]} 4. Nxd4
{[%clk 0:03:00.7]} 4... Nf6 {[%clk 0:03:03.1]} 5. Nc3 {[%clk 0:02:59.9]} 5...
Nc6 {[%clk 0:03:03.6]} 6. Bc4 {[%clk 0:02:58.6]} 6... e6 {[%clk 0:03:04.5]} 7.
Be3 {[%clk 0:02:56.4]} 7... Be7 {[%clk 0:03:05.5]} 8. Qe2 {[%clk 0:02:56.1]}
8... O-O {[%clk 0:03:06.3]} 9. Bb3 {[%clk 0:02:51.1]} 9... Bd7 {[%clk
0:03:06.7]} 10. g4 {[%clk 0:02:50.3]} 10... Nxd4 {[%clk 0:03:05.2]} 11. Bxd4
{[%clk 0:02:48.6]} 11... e5 {[%clk 0:03:06.4]} 12. Be3 {[%clk 0:02:48.9]} 12...
Bxg4 {[%clk 0:03:07.5]} 13. f3 {[%clk 0:02:50.1]} 13... Be6 {[%clk 0:03:08.7]}
14. O-O-O {[%clk 0:02:50.2]} 14... Bxb3 {[%clk 0:03:07.2]} 15. axb3 {[%clk
0:02:52.1]} 15... Kh8 {[%clk 0:03:01.4]} 16. Rhg1 {[%clk 0:02:48.6]} 16... a6
{[%clk 0:02:48.4]} 17. f4 {[%clk 0:02:41.7]} 17... exf4 {[%clk 0:02:41.7]} 18.
Bxf4 {[%clk 0:02:41.8]} 18... Qa5 {[%clk 0:02:43.3]} 19. Kb1 {[%clk 0:02:37.3]}
19... Rad8 {[%clk 0:02:31.4]} 20. Rg5 {[%clk 0:02:28]} 20... Qc7 {[%clk
0:02:22.3]} 21. Rdg1 {[%clk 0:02:27]} 21... g6 {[%clk 0:02:23]} 22. h4 {[%clk
0:02:10.9]} 22... Qd7 {[%clk 0:02:11.3]} 23. h5 {[%clk 0:01:59.1]} 23... Rg8
{[%clk 0:01:41.7]} 24. hxg6 {[%clk 0:01:44.5]} 24... fxg6 {[%clk 0:01:38.8]} 25.
e5 {[%clk 0:01:40.6]} 25... Nh5 {[%clk 0:01:34.7]} 26. Bd2 {[%clk 0:01:07.6]}
26... Bxg5 {[%clk 0:01:33.3]} 27. Bxg5 {[%clk 0:01:09.5]} 27... Rde8 {[%clk
0:01:22.7]} 28. Qd2 {[%clk 0:00:46.8]} 28... Rxe5 {[%clk 0:01:18]} 29. Nd5
{[%clk 0:00:48]} 29... Rf8 {[%clk 0:00:55.3]} 30. Bh6 {[%clk 0:00:21.5]} 30...
Rff5 {[%clk 0:00:49]} 31. Ne3 {[%clk 0:00:20.2]} 31... Rf7 {[%clk 0:00:41]} 32.
Nc4 {[%clk 0:00:19.7]} 32... Re6 {[%clk 0:00:35.9]} 33. Qd4+ {[%clk 0:00:20]}
33... Kg8 {[%clk 0:00:37.1]} 34. Nb6 {[%clk 0:00:19.4]} 34... Qe8 {[%clk
0:00:35.1]} 35. Ka2 {[%clk 0:00:17.7]} 35... Ng7 {[%clk 0:00:33.7]} 36. Nd5
{[%clk 0:00:09.1]} 36... Nf5 {[%clk 0:00:34.4]} 37. Qf4 {[%clk 0:00:10.3]} 37...
Nxh6 {[%clk 0:00:34.9]} 38. Qxh6 {[%clk 0:00:12.2]} 38... Qf8 {[%clk 0:00:31.6]}
39. Qh4 {[%clk 0:00:11.6]} 39... Re5 {[%clk 0:00:32.4]} 40. Nf4 {[%clk
0:00:11.9]} 40... Rxf4 {[%clk 0:00:30.8]} 0-1

[Event "***Titled Tuesday 3|2 Blitz"]
[Site "Chess.com"]
[Date "2017.02.07"]
[Round "8"]
[White "jb2mix"]
[Black "oggy1984"]
[Result "1-0"]
[WhiteElo "2396"]
[BlackElo "2282"]
[TimeControl "180+2"]
[EndTime "14:57:05 PST"]
[Termination "jb2mix won by resignation"]

1. d4 {[%clk 0:03:02]} 1... Nf6 {[%clk 0:02:59.8]} 2. c4 {[%clk 0:03:01.8]} 2...
e6 {[%clk 0:03:00.2]} 3. Nf3 {[%clk 0:03:01.9]} 3... b6 {[%clk 0:03:00.3]} 4. g3
{[%clk 0:03:02.8]} 4... Ba6 {[%clk 0:03:00.4]} 5. Qc2 {[%clk 0:03:03]} 5... Bb4+
{[%clk 0:02:55.6]} 6. Nbd2 {[%clk 0:02:59.9]} 6... O-O {[%clk 0:02:48.3]} 7. Bg2
{[%clk 0:02:59.4]} 7... Bb7 {[%clk 0:02:44.5]} 8. O-O {[%clk 0:02:59.2]} 8... d5
{[%clk 0:02:41.1]} 9. b3 {[%clk 0:02:41.1]} 9... c6 {[%clk 0:02:28.8]} 10. Bb2
{[%clk 0:02:41.1]} 10... Nbd7 {[%clk 0:02:24.3]} 11. e4 {[%clk 0:02:26.5]} 11...
Rc8 {[%clk 0:02:20.1]} 12. a3 {[%clk 0:02:08.4]} 12... Be7 {[%clk 0:02:11.7]}
13. Rfe1 {[%clk 0:01:40.4]} 13... h6 {[%clk 0:01:57.5]} 14. Rad1 {[%clk
0:01:22]} 14... Re8 {[%clk 0:01:56.7]} 15. Qb1 {[%clk 0:01:18.6]} 15... a6
{[%clk 0:01:52.9]} 16. Ne5 {[%clk 0:01:12.9]} 16... Nxe5 {[%clk 0:01:49.2]} 17.
dxe5 {[%clk 0:01:13.8]} 17... Nh7 {[%clk 0:01:38.1]} 18. exd5 {[%clk 0:01:14.3]}
18... cxd5 {[%clk 0:01:37.4]} 19. Nf1 {[%clk 0:01:08.9]} 19... Rc7 {[%clk
0:01:27.6]} 20. cxd5 {[%clk 0:01:06.2]} 20... Bxd5 {[%clk 0:01:26.3]} 21. Ne3
{[%clk 0:01:06.1]} 21... Rd7 {[%clk 0:01:14.3]} 22. Nxd5 {[%clk 0:01:00.4]}
22... exd5 {[%clk 0:01:14.8]} 23. e6 {[%clk 0:01:01.1]} 23... fxe6 {[%clk
0:01:14.3]} 24. Rxe6 {[%clk 0:01:03]} 24... Nf8 {[%clk 0:00:52.4]} 25. Re5
{[%clk 0:00:55.4]} 25... d4 {[%clk 0:00:50.8]} 26. Bc6 {[%clk 0:00:53.5]} 26...
Qc7 {[%clk 0:00:15.5]} 27. Qe4 {[%clk 0:00:52.4]} 27... Red8 {[%clk 0:00:09.8]}
28. Bxd7 {[%clk 0:00:48.5]} 28... Rxd7 {[%clk 0:00:10.5]} 29. Rxd4 {[%clk
0:00:42.5]} 29... Rxd4 {[%clk 0:00:06.2]} 30. Bxd4 {[%clk 0:00:42.8]} 30... Bf6
{[%clk 0:00:06.8]} 31. Qd5+ {[%clk 0:00:36.9]} 31... Kh7 {[%clk 0:00:06.6]} 32.
Re1 {[%clk 0:00:36.6]} 32... Bxd4 {[%clk 0:00:02.6]} 33. Qxd4 {[%clk 0:00:38.5]}
33... Ng6 {[%clk 0:00:03.6]} 34. Qe4 {[%clk 0:00:39]} 34... Qc3 {[%clk
0:00:03.4]} 35. h4 {[%clk 0:00:36.9]} 35... h5 {[%clk 0:00:04.5]} 36. Re3 {[%clk
0:00:36.1]} 36... Qc1+ {[%clk 0:00:04.6]} 37. Kg2 {[%clk 0:00:37.1]} 37... Kh6
{[%clk 0:00:05.9]} 38. Qd5 {[%clk 0:00:34.1]} 38... Qd1 {[%clk 0:00:05.3]} 39.
Qxd1 {[%clk 0:00:34.1]} 1-0